[Event "Titled Tuesday Blitz July 4 Early 2023"]
[White "robertoalejandro10"]
[Black "Mikhailovsky, Vladimir"]
[BlackFideId "34105414"]
[WhiteElo "2526"]
[BlackElo "2810"]
[Result "1/2-1/2"]
[Round "5"]
[TimeControl "180+2"]
[Date "2023.07.04"]
[WhiteClock "0:00:03"]
[BlackClock "0:00:05"]
[Board "82"]

1. Nf3 {[%clk 0:03:00]}  g6 {[%clk 0:02:57]} 2. c4 {[%clk 0:03:00]}  Bg7 {[%clk 0:02:58]} 3. g3 {[%clk 0:02:59]}  e5 {[%clk 0:02:59]} 4. Nc3 {[%clk 0:02:59]}  Ne7 {[%clk 0:02:59]} 5. Bg2 {[%clk 0:02:58]}  O-O {[%clk 0:03:00]} 6. O-O {[%clk 0:02:58]}  c6 {[%clk 0:02:56]} 7. d4 {[%clk 0:02:50]}  d6 {[%clk 0:02:57]} 8. dxe5 {[%clk 0:02:36]}  dxe5 {[%clk 0:02:56]} 9. Qc2 {[%clk 0:02:37]}  Qc7 {[%clk 0:02:55]} 10. Bg5 {[%clk 0:02:33]}  h6 {[%clk 0:02:54]} 11. Bxe7 {[%clk 0:02:33]}  Qxe7 {[%clk 0:02:55]} 12. Rad1 {[%clk 0:02:28]}  Be6 {[%clk 0:02:55]} 13. b3 {[%clk 0:02:28]}  Nd7 {[%clk 0:02:55]} 14. Ne4 {[%clk 0:02:26]}  Rfd8 {[%clk 0:02:49]} 15. Nc3 {[%clk 0:01:23]}  a5 {[%clk 0:02:41]} 16. Nd2 {[%clk 0:01:13]}  Nc5 {[%clk 0:02:37]} 17. Nde4 {[%clk 0:01:11]}  Nxe4 {[%clk 0:02:28]} 18. Bxe4 {[%clk 0:01:08]}  f5 {[%clk 0:02:28]} 19. Bg2 {[%clk 0:01:08]}  e4 {[%clk 0:02:27]} 20. e3 {[%clk 0:01:08]}  h5 {[%clk 0:02:24]} 21. Ne2 {[%clk 0:01:02]}  Bf7 {[%clk 0:02:22]} 22. Rxd8+ {[%clk 0:01:00]}  Rxd8 {[%clk 0:02:22]} 23. Rd1 {[%clk 0:01:01]}  Rxd1+ {[%clk 0:02:17]} 24. Qxd1 {[%clk 0:01:02]}  a4 {[%clk 0:02:18]} 25. Bf1 {[%clk 0:00:48]}  Bf6 {[%clk 0:02:04]} 26. Qd2 {[%clk 0:00:40]}  Kg7 {[%clk 0:02:00]} 27. Nd4 {[%clk 0:00:31]}  Qa3 {[%clk 0:01:48]} 28. Qc2 {[%clk 0:00:21]}  Qc5 {[%clk 0:01:38]} 29. Qd2 {[%clk 0:00:08]}  axb3 {[%clk 0:01:34]} 30. axb3 {[%clk 0:00:09]}  Qa3 {[%clk 0:01:34]} 31. Qc2 {[%clk 0:00:08]}  Qa1 {[%clk 0:01:34]} 32. Ne2 {[%clk 0:00:06]}  h4 {[%clk 0:01:26]} 33. Nf4 {[%clk 0:00:06]}  g5 {[%clk 0:01:21]} 34. Ne2 {[%clk 0:00:06]}  Be5 {[%clk 0:01:15]} 35. gxh4 {[%clk 0:00:03]}  gxh4 {[%clk 0:01:16]} 36. Nf4 {[%clk 0:00:04]}  Qe1 {[%clk 0:00:55]} 37. Ng2 {[%clk 0:00:03]}  Bxh2+ {[%clk 0:00:51]} 38. Kxh2 {[%clk 0:00:03]}  Qxf1 {[%clk 0:00:52]} 39. Nxh4 {[%clk 0:00:03]}  Be6 {[%clk 0:00:47]} 40. Ng2 {[%clk 0:00:03]}  Kf7 {[%clk 0:00:45]} 41. Nf4 {[%clk 0:00:04]}  Qa1 {[%clk 0:00:41]} 42. Qe2 {[%clk 0:00:04]}  Qh8+ {[%clk 0:00:40]} 43. Qh5+ {[%clk 0:00:03]}  Qxh5+ {[%clk 0:00:41]} 44. Nxh5 {[%clk 0:00:04]}  Ke7 {[%clk 0:00:33]} 45. Kg3 {[%clk 0:00:03]}  Kd6 {[%clk 0:00:32]} 46. Kf4 {[%clk 0:00:04]}  Kc5 {[%clk 0:00:32]} 47. Ng7 {[%clk 0:00:04]}  Bf7 {[%clk 0:00:12]} 48. Nxf5 {[%clk 0:00:04]}  Kb4 {[%clk 0:00:12]} 49. Nd6 {[%clk 0:00:04]}  Bg8 {[%clk 0:00:10]} 50. Nxb7 {[%clk 0:00:04]}  Kxb3 {[%clk 0:00:11]} 51. Kxe4 {[%clk 0:00:04]}  Kxc4 {[%clk 0:00:11]} 52. Nd8 {[%clk 0:00:04]}  c5 {[%clk 0:00:10]} 53. f4 {[%clk 0:00:04]}  Bd5+ {[%clk 0:00:05]} 54. Ke5 {[%clk 0:00:04]}  Bg8 {[%clk 0:00:06]} 55. f5 {[%clk 0:00:05]}  Kd3 {[%clk 0:00:06]} 56. e4 {[%clk 0:00:05]}  c4 {[%clk 0:00:07]} 57. Nc6 {[%clk 0:00:02]}  c3 {[%clk 0:00:07]} 58. Nb4+ {[%clk 0:00:02]}  Kc4 {[%clk 0:00:07]} 59. Nc2 {[%clk 0:00:03]}  Kd3 {[%clk 0:00:07]} 60. Nb4+ {[%clk 0:00:02]}  Kc4 {[%clk 0:00:07]} 61. Nc2 {[%clk 0:00:02]}  Kd3 {[%clk 0:00:05]} 62. Nb4+ {[%clk 0:00:03]} 1/2-1/2


[Site "https://www.chess.com"]

[Event "Titled Tuesday Blitz July 4 Early 2023"]
[White "Hambleton, Aman"]
[Black "Besedes, Danilo"]
[WhiteFideId "2606577"]
[BlackFideId "946796"]
[WhiteElo "2776"]
[BlackElo "2521"]
[Result "0-1"]
[Round "5"]
[TimeControl "180+2"]
[Date "2023.07.04"]
[WhiteClock "0:00:00"]
[BlackClock "0:01:39"]
[Board "83"]

1. d4 {[%clk 0:02:58]}  d6 {[%clk 0:02:59]} 2. e4 {[%clk 0:02:56]}  Nf6 {[%clk 0:02:59]} 3. f3 {[%clk 0:02:55]}  Nbd7 {[%clk 0:02:59]} 4. c4 {[%clk 0:02:41]}  e5 {[%clk 0:02:59]} 5. Ne2 {[%clk 0:02:40]}  Be7 {[%clk 0:02:59]} 6. Nbc3 {[%clk 0:02:32]}  c6 {[%clk 0:02:59]} 7. Be3 {[%clk 0:02:31]}  Qc7 {[%clk 0:02:58]} 8. Qd2 {[%clk 0:02:31]}  a6 {[%clk 0:02:56]} 9. d5 {[%clk 0:02:18]}  cxd5 {[%clk 0:02:51]} 10. Nxd5 {[%clk 0:01:09]}  Nxd5 {[%clk 0:02:50]} 11. cxd5 {[%clk 0:01:08]}  O-O {[%clk 0:02:46]} 12. Rc1 {[%clk 0:01:06]}  Qd8 {[%clk 0:02:40]} 13. g3 {[%clk 0:00:57]}  f5 {[%clk 0:02:39]} 14. Bh3 {[%clk 0:00:38]}  fxe4 {[%clk 0:02:28]} 15. fxe4 {[%clk 0:00:03]}  Nf6 {[%clk 0:02:21]} 16. Bg2 {[%clk 0:00:04]}  Ng4 {[%clk 0:02:13]} 17. Rc3 {[%clk 0:00:02]}  Bd7 {[%clk 0:02:08]} 18. Bg1 {[%clk 0:00:01]}  Bg5 {[%clk 0:02:05]} 19. Qd3 {[%clk 0:00:02]}  Qa5 {[%clk 0:02:01]} 20. a3 {[%clk 0:00:02]}  Rac8 {[%clk 0:02:00]} 21. h3 {[%clk 0:00:02]}  Nf6 {[%clk 0:01:58]} 22. Be3 {[%clk 0:00:01]}  Bxe3 {[%clk 0:01:54]} 23. Qxe3 {[%clk 0:00:01]}  Nh5 {[%clk 0:01:51]} 24. Bf3 {[%clk 0:00:01]}  Nf6 {[%clk 0:01:46]} 25. O-O {[%clk 0:00:01]}  Bxh3 {[%clk 0:01:45]} 26. Rfc1 {[%clk 0:00:01]}  Rxc3 {[%clk 0:01:45]} 27. Qxc3 {[%clk 0:00:02]}  Qb6+ {[%clk 0:01:44]} 28. Kh2 {[%clk 0:00:01]}  Bg4 {[%clk 0:01:44]} 29. Bg2 {[%clk 0:00:01]}  Bxe2 {[%clk 0:01:42]} 30. Qc7 {[%clk 0:00:01]}  Qf2 {[%clk 0:01:41]} 31. Qxd6 {[%clk 0:00:01]}  Bf3 {[%clk 0:01:39]} 32. Rg1 {[%clk 0:00:01]}  Ng4+ {[%clk 0:01:39]} 33. Kh3 {[%clk 0:00:00]}  Ne3 {[%clk 0:01:39]} 0-1


[Site "https://www.chess.com"]

[Event "Titled Tuesday Blitz July 4 Early 2023"]
[White "Ronka, Erik"]
[Black "Koshulyan, Egor A."]
[WhiteFideId "505080"]
[BlackFideId "24237000"]
[WhiteElo "2514"]
[BlackElo "2688"]
[Result "0-1"]
[Round "5"]
[TimeControl "180+2"]
[Date "2023.07.04"]
[WhiteClock "0:01:46"]
[BlackClock "0:02:38"]
[Board "86"]

1. e4 {[%clk 0:02:08]}  c5 {[%clk 0:02:56]} 2. Nf3 {[%clk 0:02:08]}  Nc6 {[%clk 0:02:57]} 3. d4 {[%clk 0:02:08]}  cxd4 {[%clk 0:02:57]} 4. Nxd4 {[%clk 0:02:09]}  Nf6 {[%clk 0:02:57]} 5. Nc3 {[%clk 0:02:09]}  e5 {[%clk 0:02:58]} 6. Ndb5 {[%clk 0:02:10]}  d6 {[%clk 0:02:58]} 7. Bg5 {[%clk 0:02:10]}  a6 {[%clk 0:02:58]} 8. Na3 {[%clk 0:02:11]}  Be6 {[%clk 0:02:58]} 9. Nc4 {[%clk 0:02:10]}  Rb8 {[%clk 0:02:59]} 10. Nd5 {[%clk 0:02:09]}  Bxd5 {[%clk 0:02:58]} 11. exd5 {[%clk 0:02:10]}  Ne7 {[%clk 0:02:59]} 12. Bxf6 {[%clk 0:02:10]}  gxf6 {[%clk 0:03:00]} 13. Ne3 {[%clk 0:02:05]}  f5 {[%clk 0:02:59]} 14. g4 {[%clk 0:01:59]}  Bh6 {[%clk 0:02:37]} 15. Nxf5 {[%clk 0:01:56]}  Nxf5 {[%clk 0:02:38]} 16. gxf5 {[%clk 0:01:57]}  Qb6 {[%clk 0:02:38]} 17. Rb1 {[%clk 0:01:46]}  Qb4+ {[%clk 0:02:38]} 0-1


[Site "https://www.chess.com"]

[Event "Titled Tuesday Blitz July 4 Early 2023"]
[White "Kirillov, Dmitry"]
[Black "Amilal Munkhdalai"]
[WhiteFideId "34180572"]
[BlackFideId "4903250"]
[WhiteElo "2513"]
[BlackElo "2682"]
[Result "0-1"]
[Round "5"]
[TimeControl "180+2"]
[Date "2023.07.04"]
[WhiteClock "0:01:13"]
[BlackClock "0:01:12"]
[Board "87"]

1. d4 {[%clk 0:02:56]}  Nf6 {[%clk 0:03:00]} 2. c4 {[%clk 0:02:56]}  e6 {[%clk 0:03:00]} 3. Nf3 {[%clk 0:02:56]}  d5 {[%clk 0:03:00]} 4. Qc2 {[%clk 0:02:55]}  b6 {[%clk 0:02:58]} 5. cxd5 {[%clk 0:02:55]}  Nxd5 {[%clk 0:02:58]} 6. Bf4 {[%clk 0:02:55]}  Nxf4 {[%clk 0:02:58]} 7. e4 {[%clk 0:02:43]}  Bb7 {[%clk 0:02:54]} 8. g3 {[%clk 0:02:43]}  Ng6 {[%clk 0:02:52]} 9. h4 {[%clk 0:02:44]}  Bb4+ {[%clk 0:02:47]} 10. Nc3 {[%clk 0:02:44]}  h6 {[%clk 0:02:41]} 11. Qa4+ {[%clk 0:02:40]}  Nc6 {[%clk 0:02:40]} 12. Bb5 {[%clk 0:02:37]}  Bxc3+ {[%clk 0:02:39]} 13. bxc3 {[%clk 0:02:38]}  Ne7 {[%clk 0:02:39]} 14. Ne5 {[%clk 0:02:36]}  Qd6 {[%clk 0:02:38]} 15. Nc4 {[%clk 0:02:30]}  Qd8 {[%clk 0:02:36]} 16. Ne5 {[%clk 0:02:30]}  Qd6 {[%clk 0:02:11]} 17. Nc4 {[%clk 0:02:28]}  Qd7 {[%clk 0:01:48]} 18. Ne5 {[%clk 0:02:26]}  Nxe5 {[%clk 0:01:39]} 19. Bxd7+ {[%clk 0:02:26]}  Nxd7 {[%clk 0:01:40]} 20. e5 {[%clk 0:02:19]}  Bxh1 {[%clk 0:01:39]} 21. O-O-O {[%clk 0:02:13]}  Bc6 {[%clk 0:01:38]} 22. Qa6 {[%clk 0:02:12]}  O-O {[%clk 0:01:39]} 23. g4 {[%clk 0:02:13]}  Rfc8 {[%clk 0:01:34]} 24. f4 {[%clk 0:02:13]}  Bf3 {[%clk 0:01:32]} 25. f5 {[%clk 0:02:09]}  Bxd1 {[%clk 0:01:31]} 26. f6 {[%clk 0:02:07]}  Nd5 {[%clk 0:01:26]} 27. Kxd1 {[%clk 0:02:07]}  c5 {[%clk 0:01:26]} 28. g5 {[%clk 0:02:02]}  Nxc3+ {[%clk 0:01:24]} 29. Kd2 {[%clk 0:02:00]}  cxd4 {[%clk 0:01:25]} 30. gxh6 {[%clk 0:02:00]}  Ne4+ {[%clk 0:01:24]} 31. Kd1 {[%clk 0:01:56]}  g6 {[%clk 0:01:18]} 32. h5 {[%clk 0:01:55]}  Nxe5 {[%clk 0:01:16]} 33. hxg6 {[%clk 0:01:55]}  Nxg6 {[%clk 0:01:16]} 34. Qb7 {[%clk 0:01:50]}  Nc3+ {[%clk 0:01:13]} 35. Kd2 {[%clk 0:01:49]}  Nd5 {[%clk 0:01:13]} 36. h7+ {[%clk 0:01:48]}  Kf8 {[%clk 0:01:13]} 37. Qa6 {[%clk 0:01:13]}  Nxf6 {[%clk 0:01:12]} 0-1


[Site "https://www.chess.com"]

[Event "Titled Tuesday Blitz July 4 Early 2023"]
[White "Le Ruyet, Leopold"]
[Black "Deng, Henry"]
[WhiteFideId "645923"]
[BlackFideId "30965454"]
[WhiteElo "2633"]
[BlackElo "2508"]
[Result "0-1"]
[Round "5"]
[TimeControl "180+2"]
[Date "2023.07.04"]
[WhiteClock "0:00:40"]
[BlackClock "0:00:17"]
[Board "90"]

1. e4 {[%clk 0:03:00]}  c5 {[%clk 0:02:59]} 2. Nf3 {[%clk 0:03:00]}  e6 {[%clk 0:02:57]} 3. d4 {[%clk 0:03:01]}  cxd4 {[%clk 0:02:58]} 4. Nxd4 {[%clk 0:03:01]}  Nf6 {[%clk 0:02:58]} 5. Nc3 {[%clk 0:03:02]}  Nc6 {[%clk 0:02:58]} 6. Ndb5 {[%clk 0:02:59]}  Bb4 {[%clk 0:02:58]} 7. a3 {[%clk 0:02:59]}  Bxc3+ {[%clk 0:02:56]} 8. Nxc3 {[%clk 0:02:59]}  d5 {[%clk 0:02:56]} 9. Bd3 {[%clk 0:02:59]}  dxe4 {[%clk 0:02:56]} 10. Nxe4 {[%clk 0:03:00]}  Nxe4 {[%clk 0:02:56]} 11. Bxe4 {[%clk 0:03:01]}  Qxd1+ {[%clk 0:02:56]} 12. Kxd1 {[%clk 0:03:01]}  Bd7 {[%clk 0:02:57]} 13. Re1 {[%clk 0:02:48]}  O-O-O {[%clk 0:02:25]} 14. Be3 {[%clk 0:02:48]}  Nd4 {[%clk 0:01:56]} 15. Kc1 {[%clk 0:02:44]}  Bc6 {[%clk 0:01:56]} 16. Bxc6 {[%clk 0:02:44]}  Nxc6 {[%clk 0:01:55]} 17. c3 {[%clk 0:02:42]}  Rd5 {[%clk 0:01:52]} 18. Kc2 {[%clk 0:02:40]}  Rhd8 {[%clk 0:01:52]} 19. Rad1 {[%clk 0:02:36]}  a6 {[%clk 0:01:50]} 20. Rxd5 {[%clk 0:02:30]}  Rxd5 {[%clk 0:01:49]} 21. Rd1 {[%clk 0:02:31]}  Rxd1 {[%clk 0:01:40]} 22. Kxd1 {[%clk 0:02:31]}  e5 {[%clk 0:01:38]} 23. Kc2 {[%clk 0:02:26]}  Kd7 {[%clk 0:01:39]} 24. Kd3 {[%clk 0:02:26]}  Kd6 {[%clk 0:01:36]} 25. b4 {[%clk 0:02:20]}  f5 {[%clk 0:01:33]} 26. Kc4 {[%clk 0:02:16]}  b5+ {[%clk 0:01:29]} 27. Kb3 {[%clk 0:02:13]}  Kd5 {[%clk 0:01:30]} 28. c4+ {[%clk 0:01:48]}  bxc4+ {[%clk 0:01:28]} 29. Kc3 {[%clk 0:01:48]}  Nd4 {[%clk 0:01:27]} 30. a4 {[%clk 0:01:47]}  f4 {[%clk 0:01:23]} 31. Bd2 {[%clk 0:01:45]}  g5 {[%clk 0:01:16]} 32. f3 {[%clk 0:01:42]}  h5 {[%clk 0:01:12]} 33. h3 {[%clk 0:01:37]}  Ne2+ {[%clk 0:00:58]} 34. Kc2 {[%clk 0:01:35]}  e4 {[%clk 0:00:57]} 35. fxe4+ {[%clk 0:01:32]}  Kxe4 {[%clk 0:00:57]} 36. a5 {[%clk 0:01:26]}  Nd4+ {[%clk 0:00:54]} 37. Kc3 {[%clk 0:01:26]}  Kd5 {[%clk 0:00:55]} 38. Be1 {[%clk 0:01:22]}  Nb5+ {[%clk 0:00:54]} 39. Kc2 {[%clk 0:01:22]}  Ke4 {[%clk 0:00:54]} 40. Bf2 {[%clk 0:01:20]}  g4 {[%clk 0:00:48]} 41. hxg4 {[%clk 0:01:20]}  hxg4 {[%clk 0:00:49]} 42. Kd2 {[%clk 0:01:17]}  f3 {[%clk 0:00:26]} 43. g3 {[%clk 0:01:16]}  Kd5 {[%clk 0:00:26]} 44. Kc2 {[%clk 0:01:10]}  Ke4 {[%clk 0:00:19]} 45. Kd2 {[%clk 0:01:10]}  c3+ {[%clk 0:00:16]} 46. Kc2 {[%clk 0:01:09]}  Kd5 {[%clk 0:00:16]} 47. Kd3 {[%clk 0:01:09]}  c2 {[%clk 0:00:15]} 48. Kxc2 {[%clk 0:01:09]}  Kc4 {[%clk 0:00:16]} 49. Be1 {[%clk 0:00:59]}  Nd4+ {[%clk 0:00:16]} 50. Kd2 {[%clk 0:00:57]}  Nf5 {[%clk 0:00:15]} 51. Kc2 {[%clk 0:00:53]}  Ne3+ {[%clk 0:00:15]} 52. Kd2 {[%clk 0:00:53]}  Nd5 {[%clk 0:00:16]} 53. Bf2 {[%clk 0:00:48]}  Kxb4 {[%clk 0:00:14]} 54. Bb6 {[%clk 0:00:47]}  Kc4 {[%clk 0:00:14]} 55. Kc2 {[%clk 0:00:46]}  Nf6 {[%clk 0:00:14]} 56. Bc7 {[%clk 0:00:42]}  Ne4 {[%clk 0:00:15]} 57. Kd1 {[%clk 0:00:42]}  Kd3 {[%clk 0:00:15]} 58. Bb6 {[%clk 0:00:40]}  f2 {[%clk 0:00:15]} 59. Bxf2 {[%clk 0:00:39]}  Nxf2+ {[%clk 0:00:16]} 60. Ke1 {[%clk 0:00:40]}  Ne4 {[%clk 0:00:16]} 61. Kf1 {[%clk 0:00:41]}  Nxg3+ {[%clk 0:00:17]} 62. Kg2 {[%clk 0:00:40]}  Ne4 {[%clk 0:00:17]} 0-1


[Site "https://www.chess.com"]

[Event "Titled Tuesday Blitz July 4 Early 2023"]
[White "Kononenko, Dmitry"]
[Black "Herzog2012"]
[WhiteFideId "14113538"]
[WhiteElo "2612"]
[BlackElo "2495"]
[Result "1-0"]
[Round "5"]
[TimeControl "180+2"]
[Date "2023.07.04"]
[WhiteClock "0:00:16"]
[BlackClock "0:00:00"]
[Board "94"]

1. e4 {[%clk 0:03:00]}  c5 {[%clk 0:02:57]} 2. Nf3 {[%clk 0:03:01]}  Nc6 {[%clk 0:02:56]} 3. d4 {[%clk 0:03:00]}  cxd4 {[%clk 0:02:57]} 4. Nxd4 {[%clk 0:03:01]}  Nf6 {[%clk 0:02:58]} 5. Nc3 {[%clk 0:03:01]}  d6 {[%clk 0:02:57]} 6. Bc4 {[%clk 0:03:00]}  Qb6 {[%clk 0:02:55]} 7. Nde2 {[%clk 0:02:56]}  g6 {[%clk 0:02:50]} 8. Bb3 {[%clk 0:02:50]}  Bg7 {[%clk 0:02:46]} 9. Be3 {[%clk 0:02:49]}  Qa5 {[%clk 0:02:46]} 10. f3 {[%clk 0:02:46]}  O-O {[%clk 0:02:41]} 11. Qd2 {[%clk 0:02:46]}  b5 {[%clk 0:02:31]} 12. O-O {[%clk 0:02:42]}  Rd8 {[%clk 0:02:08]} 13. a4 {[%clk 0:02:34]}  b4 {[%clk 0:02:06]} 14. Nd5 {[%clk 0:02:34]}  Ba6 {[%clk 0:01:49]} 15. Rfd1 {[%clk 0:02:29]}  Rac8 {[%clk 0:01:39]} 16. Nd4 {[%clk 0:02:26]}  Nxd4 {[%clk 0:01:19]} 17. Nxf6+ {[%clk 0:02:13]}  Bxf6 {[%clk 0:01:18]} 18. Bxd4 {[%clk 0:02:13]}  Bxd4+ {[%clk 0:01:18]} 19. Qxd4 {[%clk 0:02:13]}  Qc5 {[%clk 0:01:07]} 20. Kf2 {[%clk 0:02:10]}  Bc4 {[%clk 0:01:02]} 21. Qxc5 {[%clk 0:01:41]}  Rxc5 {[%clk 0:01:03]} 22. Rd2 {[%clk 0:01:11]}  Bxb3 {[%clk 0:01:00]} 23. cxb3 {[%clk 0:01:12]}  Rdc8 {[%clk 0:01:00]} 24. Ke3 {[%clk 0:01:12]}  a5 {[%clk 0:00:54]} 25. Rad1 {[%clk 0:01:10]}  Kg7 {[%clk 0:00:44]} 26. Rd5 {[%clk 0:01:11]}  Kf6 {[%clk 0:00:44]} 27. Rxc5 {[%clk 0:01:07]}  Rxc5 {[%clk 0:00:43]} 28. Rd2 {[%clk 0:01:07]}  Ke6 {[%clk 0:00:31]} 29. Kd4 {[%clk 0:01:04]}  Rc1 {[%clk 0:00:28]} 30. h3 {[%clk 0:01:03]}  Kd7 {[%clk 0:00:25]} 31. Ke3 {[%clk 0:00:59]}  Kc6 {[%clk 0:00:24]} 32. f4 {[%clk 0:00:49]}  e6 {[%clk 0:00:23]} 33. h4 {[%clk 0:00:45]}  Kc5 {[%clk 0:00:21]} 34. f5 {[%clk 0:00:39]}  gxf5 {[%clk 0:00:20]} 35. exf5 {[%clk 0:00:39]}  e5 {[%clk 0:00:16]} 36. Ke4 {[%clk 0:00:39]}  Re1+ {[%clk 0:00:12]} 37. Kf3 {[%clk 0:00:39]}  Rf1+ {[%clk 0:00:12]} 38. Kg4 {[%clk 0:00:38]}  f6 {[%clk 0:00:12]} 39. Rc2+ {[%clk 0:00:36]}  Kd5 {[%clk 0:00:11]} 40. Rd2+ {[%clk 0:00:36]}  Kc6 {[%clk 0:00:11]} 41. Rc2+ {[%clk 0:00:36]}  Kd7 {[%clk 0:00:12]} 42. Rd2 {[%clk 0:00:36]}  Rf4+ {[%clk 0:00:11]} 43. Kg3 {[%clk 0:00:34]}  Rxf5 {[%clk 0:00:11]} 44. Rd5 {[%clk 0:00:35]}  Rf1 {[%clk 0:00:07]} 45. Rxa5 {[%clk 0:00:35]}  Rb1 {[%clk 0:00:04]} 46. Rb5 {[%clk 0:00:33]}  Rxb2 {[%clk 0:00:04]} 47. Rxb4 {[%clk 0:00:33]}  Ke6 {[%clk 0:00:05]} 48. a5 {[%clk 0:00:32]}  d5 {[%clk 0:00:05]} 49. a6 {[%clk 0:00:32]}  Ra2 {[%clk 0:00:06]} 50. Ra4 {[%clk 0:00:32]}  Rb2 {[%clk 0:00:03]} 51. a7 {[%clk 0:00:32]}  Rxb3+ {[%clk 0:00:04]} 52. Kh2 {[%clk 0:00:31]}  Kf5 {[%clk 0:00:02]} 53. a8=Q {[%clk 0:00:31]}  d4 {[%clk 0:00:02]} 54. Qc8+ {[%clk 0:00:29]}  Ke4 {[%clk 0:00:02]} 55. Qc6+ {[%clk 0:00:23]}  Kf5 {[%clk 0:00:02]} 56. Qd7+ {[%clk 0:00:20]}  Kf4 {[%clk 0:00:02]} 57. Ra2 {[%clk 0:00:17]}  Ke4 {[%clk 0:00:01]} 58. Qg4+ {[%clk 0:00:16]}  Kd5 {[%clk 0:00:01]} 59. Qg8+ {[%clk 0:00:17]}  Ke4 {[%clk 0:00:01]} 60. Qxb3 {[%clk 0:00:17]}  d3 {[%clk 0:00:01]} 61. Ra4+ {[%clk 0:00:16]}  Ke3 {[%clk 0:00:01]} 62. Qb6+ {[%clk 0:00:16]}  Ke2 {[%clk 0:00:00]} 63. Ra2+ {[%clk 0:00:16]} 1-0


[Site "https://www.chess.com"]

[Event "Titled Tuesday Blitz July 4 Early 2023"]
[White "IrI_Cheetah"]
[Black "Akhmetov, Ayan"]
[BlackFideId "13703706"]
[WhiteElo "2487"]
[BlackElo "2608"]
[Result "1-0"]
[Round "5"]
[TimeControl "180+2"]
[Date "2023.07.04"]
[WhiteClock "0:02:05"]
[BlackClock "0:01:53"]
[Board "98"]

1. e4 {[%clk 0:02:55]}  c5 {[%clk 0:02:59]} 2. Nf3 {[%clk 0:02:54]}  d6 {[%clk 0:03:00]} 3. Bb5+ {[%clk 0:02:51]}  Nd7 {[%clk 0:03:00]} 4. O-O {[%clk 0:02:51]}  Nf6 {[%clk 0:02:59]} 5. Ba4 {[%clk 0:02:49]}  Nxe4 {[%clk 0:02:56]} 6. Re1 {[%clk 0:02:30]}  Nf6 {[%clk 0:02:56]} 7. d4 {[%clk 0:02:27]}  e6 {[%clk 0:02:26]} 8. d5 {[%clk 0:02:27]}  e5 {[%clk 0:02:26]} 9. Nxe5 {[%clk 0:02:27]}  dxe5 {[%clk 0:02:25]} 10. Rxe5+ {[%clk 0:02:27]}  Be7 {[%clk 0:02:20]} 11. d6 {[%clk 0:02:27]}  a6 {[%clk 0:02:02]} 12. Rxe7+ {[%clk 0:02:13]}  Kf8 {[%clk 0:01:53]} 13. Bb3 {[%clk 0:02:05]} 1-0


[Site "https://www.chess.com"]

[Event "Titled Tuesday Blitz July 4 Early 2023"]
[White "Kashlinskaya, Alina"]
[Black "Yeritsyan, Hayk"]
[WhiteFideId "4198026"]
[BlackFideId "13307320"]
[WhiteElo "2605"]
[BlackElo "2475"]
[Result "0-1"]
[Round "5"]
[TimeControl "180+2"]
[Date "2023.07.04"]
[WhiteClock "0:00:12"]
[BlackClock "0:00:14"]
[Board "101"]

1. Nf3 {[%clk 0:03:00]}  d5 {[%clk 0:02:53]} 2. g3 {[%clk 0:03:00]}  Nf6 {[%clk 0:02:53]} 3. Bg2 {[%clk 0:03:01]}  Bf5 {[%clk 0:02:54]} 4. O-O {[%clk 0:03:01]}  e6 {[%clk 0:02:55]} 5. d3 {[%clk 0:03:02]}  h6 {[%clk 0:02:55]} 6. Nbd2 {[%clk 0:03:01]}  c6 {[%clk 0:02:55]} 7. Qe1 {[%clk 0:02:57]}  Be7 {[%clk 0:02:55]} 8. e4 {[%clk 0:02:57]}  Bh7 {[%clk 0:02:56]} 9. e5 {[%clk 0:02:45]}  Nfd7 {[%clk 0:02:55]} 10. Qe2 {[%clk 0:02:45]}  O-O {[%clk 0:02:55]} 11. Re1 {[%clk 0:02:43]}  c5 {[%clk 0:02:55]} 12. Nf1 {[%clk 0:02:40]}  Nc6 {[%clk 0:02:56]} 13. g4 {[%clk 0:02:40]}  Qc7 {[%clk 0:02:56]} 14. Bf4 {[%clk 0:02:39]}  Rac8 {[%clk 0:02:55]} 15. Ng3 {[%clk 0:02:35]}  Nd4 {[%clk 0:02:55]} 16. Nxd4 {[%clk 0:02:34]}  cxd4 {[%clk 0:02:56]} 17. Rac1 {[%clk 0:02:34]}  Qb6 {[%clk 0:02:56]} 18. b3 {[%clk 0:02:31]}  Qc7 {[%clk 0:02:56]} 19. Nh5 {[%clk 0:02:30]}  Ba3 {[%clk 0:02:54]} 20. Rcd1 {[%clk 0:02:14]}  Qxc2 {[%clk 0:02:51]} 21. Rd2 {[%clk 0:02:14]}  Qc7 {[%clk 0:02:48]} 22. Red1 {[%clk 0:02:04]}  Bb4 {[%clk 0:02:44]} 23. Rb2 {[%clk 0:02:04]}  Bc3 {[%clk 0:02:32]} 24. Rc2 {[%clk 0:02:04]}  Bg6 {[%clk 0:02:28]} 25. Ng3 {[%clk 0:01:59]}  f6 {[%clk 0:02:22]} 26. exf6 {[%clk 0:01:45]}  Qxf4 {[%clk 0:02:21]} 27. Qxe6+ {[%clk 0:01:46]}  Rf7 {[%clk 0:02:16]} 28. Bxd5 {[%clk 0:01:46]}  Nb6 {[%clk 0:01:53]} 29. fxg7 {[%clk 0:01:40]}  Nxd5 {[%clk 0:01:35]} 30. Qxc8+ {[%clk 0:01:39]}  Kxg7 {[%clk 0:01:35]} 31. Qe6 {[%clk 0:01:36]}  Qf3 {[%clk 0:01:19]} 32. Qe5+ {[%clk 0:01:27]}  Kh7 {[%clk 0:01:18]} 33. Qe2 {[%clk 0:01:24]}  Qxe2 {[%clk 0:01:04]} 34. Nxe2 {[%clk 0:01:23]}  b5 {[%clk 0:01:05]} 35. a3 {[%clk 0:00:55]}  a5 {[%clk 0:01:04]} 36. Kg2 {[%clk 0:00:53]}  b4 {[%clk 0:01:03]} 37. a4 {[%clk 0:00:41]}  h5 {[%clk 0:00:54]} 38. h3 {[%clk 0:00:41]}  Kh6 {[%clk 0:00:55]} 39. Kg3 {[%clk 0:00:41]}  hxg4 {[%clk 0:00:53]} 40. hxg4 {[%clk 0:00:42]}  Kg5 {[%clk 0:00:53]} 41. Ng1 {[%clk 0:00:38]}  Nf4 {[%clk 0:00:40]} 42. Nh3+ {[%clk 0:00:37]}  Nxh3 {[%clk 0:00:39]} 43. Kxh3 {[%clk 0:00:38]}  Rf3+ {[%clk 0:00:38]} 44. Kg2 {[%clk 0:00:39]}  Kxg4 {[%clk 0:00:35]} 45. Re2 {[%clk 0:00:39]}  Bxd3 {[%clk 0:00:23]} 46. Re5 {[%clk 0:00:38]}  Bc2 {[%clk 0:00:20]} 47. Rh1 {[%clk 0:00:37]}  Rf5 {[%clk 0:00:19]} 48. f3+ {[%clk 0:00:32]}  Kg5 {[%clk 0:00:18]} 49. Re6 {[%clk 0:00:27]}  d3 {[%clk 0:00:17]} 50. Rhh6 {[%clk 0:00:23]}  Rf6 {[%clk 0:00:16]} 51. Rhxf6 {[%clk 0:00:14]}  Bxf6 {[%clk 0:00:15]} 52. Rd6 {[%clk 0:00:15]}  Bc3 {[%clk 0:00:15]} 53. Kf2 {[%clk 0:00:15]}  d2 {[%clk 0:00:16]} 54. Ke2 {[%clk 0:00:12]}  Bxb3 {[%clk 0:00:14]} 0-1


[Site "https://www.chess.com"]